Cogmind - Beta 15 @@@ ROGUE MODE // 2025.08.08 @ 16:18:27 Player: nostromo Result: Smashed by cave-in Performance ------------- Evolutions (0) 0 Regions Visited (0) 0 Robots Destroyed (2) 10 Value Destroyed (14) 14 Prototype IDs (0) 0 Alien Tech Used (0) 0 Bonus (0) 0 TOTAL SCORE: 24 Bonus ------- None Cogmind --------- Core Integrity 0/250 Matter 261/300 Energy 100/100 System Corruption 21% Temperature Cool (0) Movement Treading (160) Location -11/Scrapyard Parts ------- > --- POWER (1) -------- (None) > --- PROPULSION (2) --- Light Treads > --- UTILITY (2) ------ (None) > --- WEAPON (2) ------- (None) > --- INVENTORY (5) ---- Light Ion Engine Peak State ------------ > --- POWER ------------ Light Ion Engine > --- PROPULSION ------- Light Treads Light Treads > --- UTILITY ---------- Small Storage Unit Seismic Detector > --- WEAPON ----------- Small Laser Small Laser > --- INVENTORY -------- Light Ion Engine [Rating: 7] Favorites ----------- Power Light Ion Engine Engine Light Ion Engine Propulsion Light Treads Treads Light Treads Utility Small Storage Unit Device Seismic Detector Storage Small Storage Unit Weapon Small Laser Energy Gun Small Laser Special Weapon Mining Laser Build | -11 ------- Run | Yrd Slots Evolved . | . Power . | . Propulsion . | . Utility . | . Weapon . | . Parts Attached 9 | 9 Power 1 | 1 Engine 1 | 1 Core . | . Reactor . | . Propulsion 2 | 2 Treads 2 | 2 Leg . | . Wheel . | . Hover . | . Flight . | . Utility 2 | 2 Device 1 | 1 Storage 1 | 1 Processor . | . Hackware . | . Protection . | . Artifact . | . Weapon 4 | 4 Energy Gun 2 | 2 Energy Cannon . | . Ballistic Gun . | . Ballistic Cannon . | . Launcher . | . Special Weapon 2 | 2 Impact Weapon . | . Slashing Weapon . | . Piercing Weapon . | . Special Melee Weapon . | . Unidentified Prototypes . | . Parts Lost 7 | 7 Power 1 | 1 Propulsion 1 | 1 Utility 2 | 2 Weapon 3 | 3 Highest Loss Streak 5 | 5 To Critical Strikes . | . Average Backups 1 | 1 Power . | . Propulsion . | . Utility . | . Weapon . | . Tool/Special . | . Unused Backups 1 | 1 Power 1 | 1 Propulsion . | . Utility . | . Weapon . | . Tool/Special . | . Average Slot Usage (%) . | . Peak Build Rating 7 | 7 Average Rating 5 | 5 On Entrance . | . Naked Turns . | . Heaviest Build 11 | 11 Greatest Support 40 | 40 Greatest Overweight (x) . | . Average Overweight (x) . | . Largest Inventory Capacity 8 | 8 Average Capacity 7 | 7 Most Carried 5 | 5 Average Carried 1 | 1 Final Capacity 5 | 5 Final Carried 1 | 1 Class Distribution -------------------- None Dominant Class ---------------- None Resources | -11 ----------- Run | Yrd Matter Collected 270 | 270 Remotely . | . Salvage Created 85 | 85 Parts 6 | 6 Haulers Intercepted . | . Recyclers Shooed . | . Parts Field Recycled . | . Retrieved Matter . | . Parts Self-Destructed . | . Prevented . | . Kills | -11 ------- Run | Yrd Combat Hostiles Destroyed 5 | 5 Guns 5 | 5 Classes Destroyed 2 | 2 Tunneler 2 | 2 Assembled 5 | 5 Best Kill Streak 1 | 1 Combat Bots Only 1 | 1 Max Kills in Single Turn 1 | 1 Gunslinging . | . Exploded . | . Melee . | . Uniques/NPCs Destroyed . | . Combat | -11 -------- Run | Yrd Hostile Shots Fired 13 | 13 Missed 1 | 1 Hits 12 | 12 Melee 2 | 2 Projectile 10 | 10 Damage Taken 1032 | 1032 Core 263 | 263 Absorbed by Shields . | . Core Remaining (%) . | . Volleys Fired 29 | 29 Largest 2 | 2 Hottest 200 | 200 Shots Fired 53 | 53 Gun 43 | 43 Cannon . | . Launcher . | . Special 10 | 10 Kinetic . | . Thermal 53 | 53 Explosive . | . Electromagnetic . | . Robot Hit Streak 2 | 2 Robot Miss Streak 4 | 4 Penetration Max . | . Secondary Targets . | . Shots Hit Robots 17 | 17 Core Hits 10 | 10 Critical Kills . | . Critical Parts Destroyed . | . Critical Strikes . | . Melee Attacks . | . Impact . | . Slashing . | . Piercing . | . Sneak Attacks . | . Combat Hostiles . | . Follow-up Attacks . | . Damage Inflicted 187 | 187 Guns 187 | 187 Cannons . | . Explosions . | . Melee . | . Ramming . | . Kinetic . | . Thermal 187 | 187 Explosive . | . Electromagnetic . | . Impact . | . Slashing . | . Piercing . | . Highest Corruption 21 | 21 Average Corruption 17 | 17 Corruption Purged . | . Corruption Blocked . | . Effects 14 | 14 Message Errors 1 | 1 Matter Fused 5 | 5 Heat Flow Errors 3 | 3 Energy Discharges 1 | 1 Data Loss (minor) 1 | 1 Data Loss (major) 2 | 2 Alerts 1 | 1 Overload Shots . | . Overflow Damage . | . Projectiles . | . Explosions . | . Melee . | . Knockbacks . | . Impact . | . Kinetic . | . Secondary . | . Self-Inflicted Damage . | . Shots . | . Rammed . | . Targets Rammed . | . Kicked . | . Crushed . | . Highest Temperature 240 | 240 Average Temperature 51 | 51 Received Heat Transfer 20 | 20 Siege Activations . | . Martial Activations . | . Shielding Activations . | . Robots Disrupted . | . Combat Hostiles . | . Robots Corrupted . | . Combat Hostiles . | . Parts Fried . | . Impact Corruptions . | . Robots Melted . | . Combat Hostiles . | . Parts Melted . | . Heat Transferred 425 | 425 Parts Sabotaged . | . Parts Stolen . | . Parts Stripped . | . Power Chain Reactions . | . Alert | -11 ------- Run | Yrd Maximum Alert Level . | . Low Security (%) 100 | 100 Level 1 . | . Level 2 . | . Level 3 . | . Level 4 . | . Level 5 . | . High Security . | . Max Security . | . Peak Influence 7 | 7 Initial . | . Average . | . Influence Increases 10 | 10 Destroy 0b10 Robot/NC 10 | 10 Influence Decreases 10 | 10 Time Decay 8 | 8 Lost Part 2 | 2 Squads Dispatched . | . Investigation . | . Extermination . | . Reinforcement . | . Assault . | . Garrison . | . Intercept . | . Searches Triggered . | . Construction Impeded . | . Haulers Reinforced . | . Active Scanning Responses . | . Cargo Convoy Interrupts . | . Stealth | -11 --------- Run | Yrd Distress Signals . | . Communications Jammed . | . Distress Signals . | . Times Spotted 5 | 5 Peak Tracking Total 1 | 1 Tactical Retreats . | . Traps | -11 ------- Run | Yrd Traps Triggered . | . Indirectly . | . Trap Hack Attempts . | . Triggered . | . Disarmed . | . Reprogrammed . | . Reused . | . Traps Extracted . | . Installed . | . Triggered . | . Machines | -11 ---------- Run | Yrd Machines Disabled . | . Max in Single Turn . | . Machines Repaired . | . Machines Dismantled . | . Machines Sabotaged . | . Overloaded Fab Kills . | . Hacking | -11 --------- Run | Yrd Machines Accessed . | . Terminals . | . Fabricators . | . Repair Stations . | . Recycling Units . | . Scanalyzers . | . Garrison Access . | . Total Hacks . | . Successful . | . Failed . | . Catastrophic . | . Database Lockouts . | . Manual . | . Terminals . | . Fabricators . | . Repair Stations . | . Recycling Units . | . Scanalyzers . | . Garrison Access . | . Terminal Hacks . | . Fabricator Hacks . | . Repair Station Hacks . | . Recycling Unit Hacks . | . Scanalyzer . | . Garrison Access Hacks . | . Unauthorized Hacks . | . Terminals . | . Fabricators . | . Repair Stations . | . Recycling Units . | . Scanalyzers . | . Garrison Access . | . Data Cores Recovered . | . Used . | . Hacking Detections . | . Full Trace Events . | . Feedback Events . | . Feedback Blocked . | . Robot Schematics Acquired . | . Robots Built . | . Authchips . | . Time . | . Total Robot Build Rating . | . Part Schematics Acquired . | . Parts Built . | . Authchips . | . Time . | . Total Part Build Rating . | . Parts Repaired . | . Time . | . Parts Recycled . | . Recycled Matter . | . Retrieved Matter . | . Retrieved Components . | . Parts Scanalyzed . | . Part Schematics Acquired . | . Parts Damaged . | . Bothacking | -11 ------------ Run | Yrd Used RIF Installer . | . Robots Hacked . | . Non-combat . | . Combat . | . Robot Hacks Applied . | . Relay Couplers Released . | . Fabnet Peak Effective % . | . Robots Rewired . | . Allies Hacked . | . Hacks Repelled . | . Allies | -11 -------- Run | Yrd Total Allies . | . Largest Group . | . Highest-Rated Group . | . Highest-Rated Ally . | . Total Orders . | . Ally Attacks . | . Total Damage . | . Kills . | . Allies Corrupted . | . Allies Melted . | . Intel | -11 ------- Run | Yrd Active Infowar (turns) 1316 | 1316 Seismic 1316 | 1316 Robot Analysis Total . | . Derelict Logs Recovered . | . Drone Launches . | . Drone Recoveries . | . Exploration | -11 ------------- Run | Yrd Turns Passed 4505 | 4505 Spaces Moved 1259 | 1259 Core 30 | 30 Treads 1229 | 1229 Legs . | . Wheels . | . Hover . | . Flight . | . Fastest Speed 50 | 50 Average Speed 157 | 157 Slowest Speed 160 | 160 Overloaded Moves . | . Propulsion Burnouts . | . Robots Hopped . | . Potential Cave-ins 3 | 3 Cave-ins Triggered 11 | 11 Exploration Rate (%) 95 | 95 Regions Visited . Branch Regions . Pre-discovered Areas . | . Known Exits Taken . | . Unknown Exits Taken . | . Scrap Searched . | . Spaces Dug 8 | 8 Terrain Destroyed 8 | 8 Melee . | . Projectile 8 | 8 AOE . | . Terrain Rammed . | . Walls Destroyed . | . Machines Disabled . | . Actions | -11 --------- Run | Yrd Total 3710 | 3710 Wait 2402 | 2402 Move 1259 | 1259 Hop . | . Pick Up 9 | 9 Fast Attach 1 | 1 Attach 8 | 8 Detach . | . Swap 1 | 1 Drop 1 | 1 Fire 29 | 29 Melee . | . Ram . | . Kick . | . Crush . | . Escape Stasis . | . Rewire . | . Trap . | . Miscellaneous . | . Route ------- -11/Scrapyard (discovered 1 exit: [*Mat]) History --------- Turn | Location | Event 9 | -11/Scrapyard | Discovered new exit (range 15) 894 | -11/Scrapyard | Assembled infested the area 4194 | -11/Scrapyard | Crushed by falling debris 4194 | -11/Scrapyard | System corruption reached 10% 4225 | -11/Scrapyard | Crushed by falling debris 4241 | -11/Scrapyard | Crushed by falling debris 4252 | -11/Scrapyard | Crushed by falling debris 4260 | -11/Scrapyard | Crushed by falling debris 4260 | -11/Scrapyard | Core integrity fell below 50% 4272 | -11/Scrapyard | Lost 5 parts (1p1u3w) 4284 | -11/Scrapyard | Crushed by falling debris 4315 | -11/Scrapyard | Crushed by falling debris 4378 | -11/Scrapyard | Crushed by falling debris 4455 | -11/Scrapyard | Crushed by falling debris 4492 | -11/Scrapyard | Crushed by falling debris 4492 | -11/Scrapyard | Core integrity fell below 20% 4507 | -11/Scrapyard | Crushed by falling debris 4507 | -11/Scrapyard | Smashed by cave-in Last Messages --------------- System corrupted by crushing effect (+5). System corrupted: Matter fused (-10). System corrupted: Component data lost. System corrupted: Heat flow error (+173). System corrupted: IFF burst signal emitted. The unstable cave ceiling collapses. Crushed by falling debris. System corrupted: Matter fused (-8). System corrupted: Substantial component data lost. System corrupted: Matter fused (-5). System corrupted: Energy discharge (-31). The unstable cave ceiling collapses. Crushed by falling debris. System corrupted: Matter fused (-9). The unstable cave ceiling collapses. Crushed by falling debris. System corrupted: Matter fused (-7). The unstable cave ceiling collapses. Crushed by falling debris. Map ----- +----------------------------------------------------+ | # ##?????????# #????## ##???# ###?????????### | | #???????### ####### #????### #?????????????? | | #???????# # #??????# #?????????????? | | # ###???????# #??????# #?????????????? | | # ######????# # #??????# #?????????????? | | #????# # %#??????# #?????????????? | | #????########### ######## #?????????????? | | #???????# # # # #?????????????? | | #???????# # # # #?????????????? | | #???????# # # # ###########??## | | #???????# # # ### | | ##???????# # # # # # ## | | #######????????# # # # # ## | | #???????????######## ####### # # ## | | #??##########???# #???# # = # ## | | #??# = #???# [ #???# # % ?? ## | | ####??# #???# % ##### ### ###### #### | | ####### ##### % %= %= | | =%! % * !%! * | | = =% ########## # ######### | | #######= [ ##### < #??????# #???## | | ??????# = #???# #??????# #???# | | ??????# #???##### ###??????# #???# | | ########## ####???????# ##????????# #???# | | # # #??????????####????????# #???# | | # # *#??????????##@#????????## #???# | | # #??????????####?????????########??#### | | # # !############################ ##?# | | # # * ! ### | | # # *% | | # # ############ ##### #### ### ### | | # # #???# # # ## ######?#### | | # # #???# # # ## #?????????? | | ########## #???# ## #?????????? | | ?????????# #???# # # ## #?????????? | | ?????????# #???# # # ## #?????????? | | ?????????# #???# # ## ##?????????? | | ???####### ##??######### #############??????????? | | ??# #?## # # #????????????? | | ??# # # # #????????????? | | ??# # #????????????? | | ??# # # # #????????????? | | ??# # # # #????????????? | | ??# # # # #????????????? | | ??# #### # # #????????????? | | ###########???# # ## #????????????? | | ## #?????# # ###########????????????? | | # #?############## #??????????????????????? | | # #?# #??####### #?????????????????###### | | # #?# #?## # #?????????????????# | +----------------------------------------------------+ Best States ------------- Heat Dissipation 25 Energy Generation 10 Energy Capacity 125 Matter Stores 300 Matter Capacity 300 Sight Range 16 Terrain Scan Density 10 Evasion (%) 50 Recoil Reduction 2 Item Schematics ----------------- None Robot Schematics ------------------ None Fabricated ------------ Nothing Repaired ---------- Nothing Alien Tech Used ----------------- None Achievements -------------- Curiosity Killed The Cat Challenges ------------ None Game ------ Seed BoreSmartbombPrototype Manual? 0 Play Time 00:20:36 Cumulative 8.7 hours Start 2025.08.08 @ 15:57:23 End 2025.08.08 @ 16:18:27 Sessions 0 Manual Loads 0 Difficulty Rogue Special Mode None Game No. 16 Rogue 16 Adventurer 0 Explorer 0 Win Type - Total 0 Types 0/0/0/0/0/0/0/0/0/0 Lore% 8 Gallery% 15 Achievement% 14 Wizard Run 0 Options --------- Layout 1 ASCII 0 Keyboard 0 Movement Mouse Keybinds 0 Fullscreen 1 Font 32/SmallcapsGlow Map View 50x35 Zoom Use 0% Tactical HUD 0 Map Filters NONE Filters NONE Steam 1 RUN: 68f18fa0-2763-409e-be87-513ea8d7598a